bitfinex/quotes_ETHUSD_20240821
["timestamp","ask_amount","ask_price","bid_price","bid_amount"]
[1724254149555,2.3383,2605.4,2604.4,6.24843]
[1724254149556,3.83891,2604.9,2604.4,6.24843]
[1724254149738,3.83863,2605.1,2604.5,3.83947]
[1724254149947,3.83885,2605.0,2604.5,3.83947]
[1724254150465,3.83893,2604.9,2604.1,3.8748664]
[1724254150607,3.83942,2604.6,2604.1,3.8748664]
[1724254150813,2.4444,2604.5,2604.1,3.8748664]
[1724254151045,6.28392,2604.5,2604.1,0.0348864]
[1724254151750,6.28392,2604.5,2604.1,3.8749464]
[1724254151916,2.4444,2604.5,2604.1,3.8749464]
[1724254153120,6.28397,2604.5,2604.1,0.0348864]
[1724254153340,7.296288,2604.5,2604.1,0.0348864]
[1724254153816,3.83995,2604.2,2604.1,0.0348864]
[1724254154033,10.1171,2604.2,2604.1,0.0348864]
[1724254154458,13.1171,2604.2,2604.1,0.0348864]
[1724254154658,16.95705,2604.2,2604.1,0.0348864]
[1724254154851,18.16301433,2604.2,2604.1,0.0348864]
[1724254155155,14.32306433,2604.2,2604.1,0.0348864]
[1724254157817,18.16301433,2604.2,2604.1,0.0348864]
[1724254159917,14.32306433,2604.2,2604.1,0.0348864]
[1724254160371,18.16301433,2604.2,2604.1,0.0348864]
[1724254161733,29.37746507,2604.2,2604.1,0.0348864]
[1724254162567,33.21741507,2604.2,2604.1,0.0348864]
[1724254162732,29.37746507,2604.2,2604.1,0.0348864]
[1724254165282,14.32306433,2604.2,2604.1,0.0348864]
[1724254165764,11.88586433,2604.2,2604.1,0.0348864]
[1724254169180,3.83947,2604.6,2604.1,0.0348864]
[1724254169398,3.83965,2604.4,2604.1,0.14113511]
[1724254169526,3.83993,2604.3,2604.1,0.0348864]
[1724254170043,3.83993,2604.3,2604.2,0.10613709]
[1724254171128,3.83965,2604.4,2604.2,0.10613709]
[1724254171532,3.83965,2604.4,2604.1,0.0348864]
[1724254172566,3.83965,2604.4,2604.2,0.10613709]
[1724254172981,3.83965,2604.4,2604.1,0.0348864]
[1724254173501,3.83943,2604.6,2604.2,0.10595442]
[1724254173652,3.8396,2604.5,2604.2,0.10595442]
[1724254174790,3.83943,2604.6,2604.2,2.47975442]
[1724254175133,7.6789,2604.6,2604.2,2.47975442]
[1724254175340,3.83958,2604.5,2604.2,2.47975442]
[1724254176247,3.83943,2604.6,2604.2,2.47975442]
[1724254176786,3.83943,2604.6,2604.2,2.3738]
[1724254176935,3.83933,2604.7,2604.2,2.3738]
[1724254177293,7.33,2605.1,2604.7,6.27011]
[1724254177594,7.33,2605.5,2605.1,3.83853]
[1724254177933,7.33,2605.5,2605.2,0.10499085]
[1724254178140,11.16805,2605.5,2605.0,3.83865]
[1724254178353,11.16805,2605.5,2605.3,0.10489454]
[1724254178550,3.83805,2605.5,2605.0,3.83865]
[1724254178874,3.83805,2605.5,2605.1,0.10508718]
[1724254179385,3.83818,2605.4,2605.1,0.10508718]
[1724254179769,3.83818,2605.4,2604.9,3.83891]
[1724254179966,3.83804,2605.5,2605.2,0.10441775]
[1724254180156,3.83804,2605.5,2605.0,3.83875]
[1724254180493,2.2681,2605.7,2605.2,3.83847]
[1724254180494,6.10585,2605.7,2605.2,3.83847]
[1724254180708,11.21445074,2605.8,2605.2,3.83847]
[1724254180854,3.0,2605.7,2605.3,0.10432143]
[1724254181209,6.8378,2605.7,2605.2,3.83847]
[1724254181352,6.8378,2605.7,2605.4,0.10422513]
[1724254181552,6.8378,2605.7,2605.3,0.10432143]
[1724254181871,6.8378,2605.7,2605.4,0.10422513]
[1724254182206,6.8378,2605.7,2605.2,3.8384]
[1724254182504,6.8378,2605.7,2605.2,4.2787015]
[1724254182795,10.67566,2605.7,2605.3,0.10432143]
[1724254182978,6.8378,2605.7,2605.3,0.10432143]
[1724254183196,10.67565,2605.7,2605.2,3.8384]
[1724254183388,3.83793,2605.6,2605.4,0.10422513]
[1724254183609,3.83793,2605.6,2605.3,0.10432143]
[1724254183758,3.83793,2605.6,2605.1,6.15361]
[1724254183960,7.6763,2605.5,2605.4,0.10422513]
[1724254184266,3.83834,2605.3,2604.9,3.83891]
[1724254184461,3.83834,2605.3,2604.8,6.28446]
[1724254184807,7.67629,2605.5,2604.9,3.942918]
[1724254184964,3.83814,2605.5,2605.0,3.83868]
[1724254185302,3.83814,2605.5,2605.1,0.10388533]
[1724254185877,3.83766,2605.8,2605.3,3.83832]
[1724254186073,3.83766,2605.8,2605.1,0.10388533]
[1724254186074,3.83741,2606.0,2605.5,3.83794]
[1724254186274,11.16715,2606.1,2605.6,3.8378]
[1724254186606,3.83752,2605.9,2605.6,0.10337338]
[1724254186813,3.83759,2605.8,2605.6,0.10337338]
[1724254187031,3.83774,2605.7,2605.2,3.8384]
[1724254187696,3.83774,2605.7,2605.3,3.83832]
[1724254188013,4.605268,2605.7,2605.1,6.181]
[1724254188158,3.83791,2605.6,2605.1,6.181]
[1724254188605,4.605268,2605.7,2605.1,10.01954]
[1724254188809,8.443138,2605.7,2605.1,10.01948]
[1724254189111,3.83792,2605.6,2605.1,6.18094]
[1724254189685,3.83792,2605.6,2605.2,0.10359135]
[1724254190798,4.605268,2605.7,2605.2,3.94205135]
[1724254190996,3.83759,2605.8,2605.3,3.8382]
[1724254191196,3.83776,2605.7,2605.2,3.94206135]
[1724254191426,3.83776,2605.7,2605.4,0.10339873]
[1724254191729,3.83776,2605.7,2605.5,0.10343926]
[1724254192146,3.83776,2605.7,2605.3,3.8383]
[1724254192436,6.22904,2605.9,2605.6,0.10330749]
[1724254192638,4.460604,2605.8,2605.2,3.83839]
[1724254192782,3.83753,2605.9,2605.5,3.83802]
[1724254193097,22.38170074,2606.1,2605.5,3.83802]
[1724254193098,22.38170074,2606.1,2605.6,6.28681242]
[1724254193733,22.38170074,2606.1,2605.7,3.83773]
[1724254193932,22.38170074,2606.1,2605.7,3.94091079]
[1724254194101,22.38170074,2606.1,2605.7,0.10318079]
[1724254195223,18.54445074,2606.1,2605.7,3.94090079]
[1724254195621,18.54445074,2606.1,2605.7,3.83772]
[1724254195962,18.54445074,2606.1,2605.8,0.10279563]
[1724254196137,3.0,2606.3,2605.8,0.10279563]
[1724254196342,3.83665,2606.5,2606.0,3.83721]
[1724254196491,3.0,2606.4,2605.9,3.83733]
[1724254196691,6.83673,2606.4,2606.0,0.10256763]
[1724254197605,3.83687,2606.3,2606.0,0.10256763]
[1724254197939,3.83687,2606.3,2605.8,3.83758]
[1724254198089,3.83687,2606.3,2606.1,0.10237511]
[1724254198485,3.83687,2606.3,2605.8,3.83758]
[1724254198917,3.0,2606.4,2605.6,6.18348]
[1724254199090,4.33253588,2606.3,2605.6,6.18348]
[1724254199304,4.33253588,2606.3,2605.7,0.10274498]
[1724254199507,3.83721,2606.1,2605.7,0.10274498]
[1724254200500,10.67326,2606.5,2605.9,3.83737]
[1724254200708,3.83671,2606.4,2605.9,3.83737]
[1724254201052,3.83701,2606.2,2605.7,3.94046498]
[1724254201390,3.83744,2606.0,2605.7,0.10274498]
[1724254201626,3.83745,2605.9,2605.7,0.10274498]
[1724254201791,3.83707,2606.2,2605.7,0.10274498]
[1724254201991,3.83696,2606.3,2605.9,2.2667]
[1724254202335,10.67332,2606.5,2606.0,3.83727]
[1724254202509,6.83664,2606.5,2605.9,6.10401]
[1724254202895,3.83721,2606.1,2605.7,0.10274498]
[1724254203712,7.67393,2606.3,2605.7,3.94041498]
[1724254203912,5.148303,2606.3,2605.7,3.94041498]
[1724254204399,3.83702,2606.2,2605.7,7.77807498]
[1724254204593,3.83715,2606.1,2605.7,3.94040498]
[1724254204799,0.8985453,2606.1,2605.7,3.94040498]
[1724254204995,3.837,2606.2,2605.7,3.94040498]
[1724254205436,3.837,2606.2,2605.7,0.10274498]
[1724254205647,2.4395,2606.4,2605.7,0.10274498]
[1724254205648,3.83744,2605.9,2605.7,0.10274498]
[1724254205845,3.83751,2605.9,2605.7,0.10274498]
[1724254206345,4.604986,2605.9,2605.7,0.10274498]
[1724254206848,3.83725,2606.1,2605.7,0.10274498]
[1724254207148,11.65718,2605.8,2605.7,0.10274498]
[1724254207325,15.49477,2605.8,2605.7,0.10274498]
[1724254207514,18.49477,2605.8,2605.7,0.10274498]
[1724254207747,20.577217,2605.8,2605.7,0.10274498]
[1724254207930,12.757627,2605.8,2605.7,0.10274498]
[1724254208667,18.988917,2605.8,2605.7,0.10274498]
[1724254209518,26.664097,2605.8,2605.7,4.98e-06]
[1724254209717,3.83936,2604.6,2604.1,6.3646464]
[1724254209969,3.83936,2604.6,2604.1,3.16105104]
[1724254210923,3.83936,2604.6,2604.1,0.0348864]
[1724254211337,3.83936,2604.6,2604.1,3.8749764]
[1724254211764,3.83974,2604.4,2604.1,0.0348864]
[1724254211919,3.83988,2604.3,2604.1,0.0348864]
[1724254212140,3.83941,2604.6,2604.1,0.0348864]
[1724254212367,6.8391,2604.8,2604.2,3.83986]
[1724254212773,3.83886,2605.0,2604.3,2.4764]
[1724254212957,3.83886,2605.0,2604.2,3.83983]
[1724254213268,3.83923,2604.7,2604.1,0.42239904]
[1724254213437,7.67887,2604.6,2604.1,0.0348864]
[1724254213619,3.83959,2604.5,2604.1,0.0348864]
[1724254213818,3.83995,2604.2,2604.1,0.0348864]
[1724254214121,7.6799,2604.2,2604.1,0.0348864]
[1724254214328,8.19959833,2604.2,2604.1,0.0348864]
[1724254214556,4.35964833,2604.2,2604.1,0.0348864]
[1724254214945,3.8398,2604.3,2604.1,0.0348864]
[1724254215159,16.79135,2604.2,2604.1,0.0348864]
[1724254215726,12.9514,2604.2,2604.1,0.0348864]
[1724254215962,16.79135,2604.2,2604.1,0.0348864]
[1724254218342,18.3598,2604.2,2604.1,0.0348864]
[1724254218542,20.8204,2604.2,2604.1,0.0348864]
[1724254218874,21.3704,2604.2,2604.1,0.0348864]
[1724254219170,16.98045,2604.2,2604.1,0.0348864]
[1724254219375,13.1405,2604.2,2604.1,0.0348864]
[1724254219938,10.6799,2604.2,2604.1,0.0348864]
[1724254220243,3.83952,2604.5,2604.1,0.12473503]
[1724254220461,7.82149,2604.6,2604.1,0.12473503]
[1724254220659,3.83968,2604.4,2604.1,0.12473503]
[1724254220843,3.83985,2604.3,2604.1,0.0348864]
[1724254221047,7.82144,2604.6,2604.1,0.0348864]
[1724254221282,3.83951,2604.5,2604.1,0.0348864]
[1724254221485,3.83967,2604.4,2604.1,0.0348864]
[1724254221692,3.982,2604.6,2604.1,0.0348864]
[1724254221987,7.6799,2604.2,2604.1,0.0348864]
[1724254222483,2.353,2604.4,2604.1,0.0348864]
[1724254222484,3.83973,2604.4,2604.1,0.0348864]
[1724254224050,6.83944,2604.6,2604.1,0.0348864]
[1724254224463,10.67892,2604.6,2604.2,0.08946807]
[1724254224661,11.21445074,2604.8,2604.3,3.83979]
[1724254224899,11.21445074,2604.8,2604.4,6.63904581]
[1724254225265,7.33,2605.1,2604.6,3.83934]
[1724254225595,7.33,2605.1,2604.7,3.92799981]
[1724254225796,15.05287074,2605.3,2604.7,0.08888981]
[1724254225971,11.1683,2605.4,2604.7,3.92797981]
[1724254226305,11.16827,2605.4,2604.9,3.8389]
[1724254226449,11.16827,2605.4,2604.9,6.2099]
[1724254226651,11.16827,2605.4,2605.0,0.08827621]
[1724254227104,11.21445074,2605.6,2605.0,3.92701621]
[1724254227261,11.21445074,2605.6,2605.2,3.83838]
[1724254227688,11.21445074,2605.6,2605.3,0.08798724]
[1724254227888,3.83778,2605.7,2605.3,0.08798724]
[1724254228108,3.83778,2605.7,2605.1,3.83861]
[1724254228455,3.83803,2605.5,2604.9,2.371]
[1724254228614,3.8382,2605.4,2605.2,0.08808355]
[1724254228793,3.8382,2605.4,2604.9,2.371]
[1724254228978,3.8382,2605.4,2604.6,3.83928]
[1724254228979,3.83849,2605.2,2604.7,3.83917]
[1724254229173,3.8382,2605.4,2604.7,4.470707]
[1724254229696,3.83835,2605.3,2604.7,8.309817]
[1724254229903,3.83835,2605.3,2604.7,4.470707]
[1724254230067,3.83835,2605.3,2604.7,7.67824]
[1724254230272,3.83848,2605.2,2604.7,3.83911]
[1724254231023,3.83841,2605.3,2604.7,3.83911]
[1724254231233,3.982,2605.5,2604.5,6.31623]
[1724254231440,3.83882,2605.0,2604.5,2.4768]
[1724254231644,3.83903,2604.9,2604.5,2.4768]
[1724254232289,3.83922,2604.7,2604.2,3.83993]
[1724254232485,3.83903,2604.9,2604.2,3.83982]
[1724254232729,11.21445074,2605.1,2604.5,3.83949]
[1724254232730,15.05317074,2605.1,2604.5,3.83949]
[1724254232904,15.05317074,2605.1,2604.1,6.1624364]
[1724254233110,7.33,2605.2,2604.6,3.83927]
[1724254233432,3.0,2605.1,2604.6,3.83927]
[1724254233636,11.16855,2605.2,2604.6,3.83927]
[1724254233944,7.33,2605.2,2604.7,3.83913]
[1724254234103,15.05265074,2605.4,2604.8,6.12644]
[1724254234889,11.21445074,2605.4,2604.9,3.83886]
[1724254235128,11.21445074,2605.4,2605.0,3.83865]
[1724254235491,11.21445074,2605.4,2605.1,0.0873987]
[1724254235896,3.83847,2605.2,2605.1,0.0873987]
[1724254236109,5.72759407,2605.2,2605.1,0.0873987]
[1724254236362,3.83865,2605.1,2604.5,2.3695]
[1724254236646,3.83877,2605.0,2604.6,0.08779425]
[1724254237654,3.83865,2605.1,2604.6,0.08779425]
[1724254237947,3.83904,2604.9,2604.6,0.08779425]
[1724254238091,3.83921,2604.7,2604.6,0.08779425]
[1724254238290,3.83921,2604.7,2604.1,0.0348864]
[1724254238291,3.83955,2604.5,2604.1,0.0348864]
[1724254239216,3.83955,2604.5,2604.2,0.08814383]
[1724254239634,7.67894,2604.6,2604.2,0.08814383]
[1724254239863,8.446834,2604.6,2604.2,0.08814383]
[1724254240065,4.607334,2604.6,2604.2,0.08814383]
[1724254240232,3.83944,2604.6,2604.2,0.08814383]
[1724254240615,7.67833,2604.8,2604.2,3.92806383]
[1724254240909,19.257472,2605.0,2604.2,0.08814383]
[1724254240910,22.38332074,2605.0,2604.2,0.08814383]
[1724254241109,18.54445074,2605.0,2604.6,3.83934]
[1724254241338,26.22215074,2605.0,2604.4,3.83953]
[1724254241663,22.38324074,2605.0,2604.5,0.08785468]
[1724254242168,18.54445074,2605.0,2604.6,3.83933]
[1724254242663,3.0,2605.1,2604.7,0.08787488]
[1724254242813,3.683854,2605.1,2604.7,0.08787488]
[1724254243167,11.16827,2605.4,2604.8,6.10757]
[1724254243456,3.8384,2605.3,2604.9,0.08762134]
[1724254244038,3.83861,2605.2,2604.9,0.08762134]
[1724254244215,3.83877,2605.0,2604.9,0.08762134]
[1724254244560,3.83877,2605.0,2604.1,0.0348864]
[1724254244561,3.83993,2604.3,2604.1,0.0348864]
[1724254244726,7.67951,2604.4,2604.1,0.0348864]
[1724254244907,7.67951,2604.4,2604.2,0.08829085]
[1724254244908,3.83974,2604.4,2604.2,0.08829085]
[1724254245513,6.83898,2604.9,2604.2,0.08829085]
[1724254245514,3.83942,2604.6,2604.2,0.08829085]
[1724254245957,3.83954,2604.5,2604.2,0.08829085]
[1724254246164,3.83942,2604.6,2604.2,0.08829085]
[1724254246585,3.83952,2604.5,2604.2,0.08829085]
[1724254247168,3.83967,2604.4,2604.2,0.08829085]
[1724254247697,3.83915,2604.8,2604.2,0.08829085]
[1724254247900,3.83931,2604.7,2604.2,0.08829085]
[1724254248062,6.83904,2604.9,2604.3,3.83977]
[1724254248407,6.83904,2604.9,2604.4,0.08834148]
[1724254248820,0.60220821,2605.0,2604.4,0.08834148]
[1724254249101,3.83827,2605.4,2604.8,3.83898]
[1724254249295,7.67659,2605.4,2604.8,3.83898]
[1724254249499,7.67659,2605.4,2604.9,0.08783432]
[1724254249810,3.83835,2605.3,2604.9,0.08783432]
[1724254250153,3.83847,2605.2,2604.9,0.08783432]
[1724254251171,3.83877,2605.0,2604.9,0.08783432]
[1724254251374,7.67754,2605.0,2604.9,0.08783432]
[1724254251582,7.67754,2605.0,2604.1,2.4903864]
[1724254251583,3.8394,2604.6,2604.1,2.4903864]
[1724254251902,3.83967,2604.4,2604.2,0.08824522]
[1724254252114,3.8394,2604.6,2604.2,0.08824522]
[1724254252278,3.8394,2604.6,2604.1,2.4903864]
[1724254252472,7.67889,2604.6,2604.1,2.4903864]
[1724254252672,7.67889,2604.6,2604.2,0.08824522]
[1724254252875,3.83951,2604.5,2604.2,0.08824522]
[1724254253112,3.83923,2604.7,2604.2,0.08824522]
[1724254253408,3.83892,2604.9,2604.2,4.56992238]
[1724254253608,3.83881,2605.0,2604.4,3.83964]
[1724254253813,3.83881,2605.0,2604.5,0.08795607]
[1724254255514,3.83904,2604.9,2604.5,0.08795607]
[1724254255720,4.606825,2604.9,2604.5,0.08795607]
[1724254256023,3.83904,2604.9,2604.5,0.08795607]
[1724254256198,3.83906,2604.8,2604.5,0.08795607]
[1724254256718,3.83906,2604.8,2604.3,3.83976]
[1724254256921,3.83906,2604.8,2604.6,0.08817914]
[1724254257216,3.83906,2604.8,2604.7,0.08808278]
[1724254257428,8.44593,2604.8,2604.7,0.08808278]
[1724254257603,3.83931,2604.7,2604.1,6.3304264]
[1724254257827,3.83937,2604.6,2604.1,6.3304264]
[1724254258020,3.83937,2604.6,2604.2,0.08855452]
[1724254258386,3.83937,2604.6,2604.2,3.92849452]
[1724254258788,3.83906,2604.8,2604.2,3.92849452]
[1724254259006,3.83903,2604.9,2604.3,3.83979]
[1724254259244,3.83903,2604.9,2604.4,0.08836174]
[1724254259402,3.83888,2605.0,2604.4,4.70468991]
[1724254259603,3.83887,2605.0,2604.5,3.83946]
[1724254260043,15.82068474,2605.2,2604.6,3.927499]
[1724254260044,3.83863,2605.1,2604.6,3.927499]
[1724254260256,3.83863,2605.1,2604.6,6.276699]
[1724254260415,10.33,2605.3,2604.7,3.83919]
[1724254260745,10.33,2605.3,2604.6,2.437369]
[1724254260746,3.83892,2604.9,2604.6,2.437369]
[1724254261046,3.83892,2604.9,2604.8,0.08797629]
[1724254261229,3.83892,2604.9,2604.7,0.08807264]
[1724254261436,3.83879,2605.0,2604.8,0.08797629]
[1724254261649,4.222669,2605.0,2604.8,0.08797629]
[1724254261973,3.83917,2604.8,2604.4,3.83964]
[1724254262301,3.83917,2604.8,2604.1,3.8748664]
[1724254262546,6.12617,2604.8,2604.1,3.8748664]
[1724254262747,3.83938,2604.6,2604.1,7.7148864]
[1724254263246,4.451827,2604.7,2604.2,3.83993]
[1724254263758,4.451827,2604.7,2604.1,7.7148164]
[1724254264509,4.451827,2604.7,2604.2,3.83991]
[1724254264730,7.67913,2604.5,2604.1,0.0348864]
[1724254265019,0.6738827,2604.6,2604.2,3.83989]
[1724254265269,17.48157074,2605.1,2604.3,3.83969]
[1724254265447,17.48157074,2605.1,2604.2,2.4666]
[1724254265448,15.05309074,2605.1,2604.6,3.83928]
[1724254265653,6.83838,2605.3,2604.6,3.83928]
[1724254265954,3.0,2605.2,2604.7,3.8391]
[1724254266120,3.0,2605.2,2604.8,3.83897]
[1724254266324,6.83835,2605.3,2604.8,3.83897]
[1724254266709,6.83835,2605.3,2604.8,7.67796]
[1724254266910,14.309,2605.6,2605.0,3.8387]
[1724254267112,3.83805,2605.5,2605.0,3.8387]
[1724254267802,7.67621,2605.5,2605.0,3.8387]
[1724254268007,3.83805,2605.5,2604.9,3.83885]
[1724254268220,7.67621,2605.5,2604.9,3.83885]
[1724254268648,3.83818,2605.4,2604.9,3.83885]
[1724254269121,3.83818,2605.4,2604.8,3.83891]
[1724254269323,3.83833,2605.3,2605.0,0.08763149]
[1724254269523,3.83877,2605.0,2604.9,0.08772783]
[1724254269719,3.83877,2605.0,2604.7,2.261]
[1724254270333,3.83905,2604.9,2604.2,2.4218]
[1724254270530,2.3532,2605.2,2604.1,3.8749064]
[1724254270531,3.83936,2604.6,2604.1,3.8749064]
[1724254270742,7.67885,2604.6,2604.1,0.0348864]
[1724254271122,3.83936,2604.6,2604.1,0.0348864]
[1724254271408,3.83983,2604.3,2604.1,0.0348864]
[1724254271615,3.8396,2604.5,2604.1,0.0348864]
[1724254271616,3.83965,2604.4,2604.1,0.0348864]
[1724254274062,10.0415,2604.2,2604.1,0.0348864]
[1724254274413,15.3598,2604.2,2604.1,0.0348864]
[1724254274614,15.3598,2604.2,2604.1,6.4e-06]
[1724254274617,20.7214,2604.2,2604.1,6.4e-06]
[1724254274808,21.2714,2604.2,2604.1,6.4e-06]
[1724254275053,2.2605,2602.9,2602.3,3.84263]
[1724254275324,2.2605,2602.9,2602.3,5.04297557]
[1724254275516,6.10247,2602.9,2602.4,0.09042773]
[1724254275967,6.10247,2602.9,2602.3,5.04297557]
[1724254276109,3.8416,2603.1,2602.3,5.04297557]
[1724254276310,3.8416,2603.1,2602.3,3.84263]
[1724254276614,3.8416,2603.1,2602.4,0.09042773]
[1724254276813,3.8416,2603.1,2602.5,3.84244]
[1724254277224,3.8416,2603.1,2602.6,0.09023469]
[1724254277950,3.84142,2603.2,2602.6,0.09023469]
[1724254278331,6.18089,2603.4,2602.6,0.09023469]
[1724254278515,6.84104,2603.5,2602.6,2.58103469]
[1724254278715,6.84104,2603.5,2602.8,3.842]
[1724254279031,4.525244,2603.4,2602.9,0.09133551]
[1724254279360,6.84104,2603.5,2602.9,0.09133551]
[1724254279714,3.84129,2603.3,2602.9,0.09133551]
[1724254280114,3.84129,2603.3,2602.7,3.84213]
[1724254280115,6.84104,2603.5,2602.7,3.84213]
[1724254280366,6.84104,2603.5,2602.6,6.333]
[1724254280367,6.84104,2603.5,2603.0,0.09114258]
[1724254280529,6.84104,2603.5,2602.8,3.84196]
[1724254280727,6.84104,2603.5,2602.9,3.84177]
[1724254280928,6.84104,2603.5,2602.9,3.93300906]
[1724254281330,10.68216,2603.5,2602.9,0.09123906]
[1724254281546,3.84122,2603.4,2602.9,0.09123906]
[1724254281717,3.84146,2603.2,2602.9,0.09123906]
[1724254281916,4.225606,2603.2,2602.9,0.09123906]
[1724254282471,3.84161,2603.1,2603.0,0.09115273]
[1724254282834,3.84161,2603.1,2602.6,3.84222]
[1724254283030,3.84161,2603.1,2603.0,0.09115273]
[1724254283362,3.84161,2603.1,2602.6,3.84222]
[1724254283561,3.84161,2603.1,2603.0,0.09115273]
[1724254283768,0.384146,2603.2,2602.6,3.84222]
[1724254283769,4.225566,2603.2,2602.6,3.84222]
[1724254284069,3.84142,2603.2,2602.6,7.68444]
[1724254284224,3.84142,2603.2,2602.7,3.93359221]
[1724254284839,3.84142,2603.2,2602.7,0.09144221]
[1724254285366,3.84198,2602.9,2602.7,0.09144221]
[1724254285533,4.226208,2602.8,2602.7,0.09144221]
[1724254285737,4.226208,2602.8,2602.2,3.84282]
[1724254285985,4.226208,2602.8,2602.7,0.09144221]
[1724254286264,4.226208,2602.8,2601.7,3.84358]
[1724254286265,3.84239,2602.6,2602.3,0.09182829]
[1724254286451,3.8429,2602.2,2601.8,2.4574]
[1724254287165,7.68589,2602.2,2601.7,3.84351]
[1724254287324,3.8429,2602.2,2601.7,3.84351]
[1724254287957,3.8429,2602.2,2601.5,6.244635]
[1724254288205,3.84311,2602.1,2601.5,0.126045]
[1724254288363,3.84343,2601.9,2601.5,0.126045]
[1724254289585,7.68687,2601.9,2601.5,0.126045]
[1724254289906,0.384311,2602.0,2601.5,0.126045]
[1724254290110,3.84313,2602.1,2601.5,3.969875]
[1724254290260,2.3693,2602.3,2601.5,0.126045]
[1724254290465,3.84343,2601.9,2601.5,0.126045]
[1724254290878,7.68625,2602.1,2601.5,0.126045]
[1724254291081,3.0,2602.4,2601.5,2.599945]
[1724254291261,11.21445074,2602.5,2602.3,3.84274]
[1724254291503,11.21445074,2602.5,2601.9,3.84327]
[1724254291678,15.05698074,2602.5,2601.9,3.84326]
[1724254291909,15.05698074,2602.5,2602.0,0.09266638]
[1724254292121,11.21445074,2602.5,2602.0,0.09266638]
[1724254292324,13.46866,2603.1,2602.5,3.84236]
[1724254292501,1.346866,2603.0,2602.3,7.68528]
[1724254292698,3.84203,2602.8,2602.6,0.09208717]
[1724254293001,7.68415,2602.8,2602.7,0.09199066]
[1724254293408,7.68415,2602.8,2602.2,3.84288]
[1724254293606,8.5872516,2602.8,2602.3,0.09237674]
[1724254294131,4.7451316,2602.8,2602.3,3.84271]
[1724254294443,3.84194,2602.9,2602.3,7.68531]
[1724254294583,3.84194,2602.9,2602.4,3.84259]
[1724254294786,3.8418,2603.0,2602.5,0.09247819]
[1724254295650,3.84208,2602.8,2602.5,0.09247819]
[1724254295821,9.627,2603.1,2602.5,0.09247819]
[1724254295822,0.384208,2602.7,2602.5,0.09247819]
[1724254296152,7.68396,2602.9,2602.3,3.84274]
[1724254296343,7.68396,2602.9,2602.6,0.09238167]
[1724254296544,3.84216,2602.7,2602.2,3.8428]
[1724254296863,3.84198,2602.9,2602.3,3.84274]
[1724254297149,5.573023,2602.9,2602.3,3.93509126]
[1724254297448,3.84206,2602.8,2602.3,0.09235126]
[1724254297849,3.84206,2602.8,2602.2,3.84277]
[1724254298158,5.573013,2602.9,2602.2,3.84277]
[1724254298304,5.573013,2602.9,2602.3,0.09234618]
[1724254298505,5.573013,2602.9,2602.2,3.84277]
[1724254298834,3.84195,2602.9,2602.4,3.8426]
[1724254299364,3.84195,2602.9,2602.5,0.09216836]
[1724254299509,3.0,2603.2,2602.6,3.8423]
[1724254299873,3.84107,2603.5,2602.8,3.842]
[1724254299874,6.84107,2603.5,2602.8,3.842]
[1724254300006,3.84107,2603.5,2603.0,3.8417]
[1724254300210,3.84076,2603.7,2603.2,3.84142]
[1724254300440,3.84048,2603.9,2603.2,3.84134]
[1724254300640,3.84048,2603.9,2602.9,2.4426]
[1724254300641,1.164508,2603.9,2603.4,3.8411]
[1724254300823,3.84038,2604.0,2603.5,3.93191659]
[1724254301227,3.84038,2604.0,2603.5,0.09107659]
[1724254301228,3.84034,2604.0,2603.5,0.09107659]
[1724254301424,7.68068,2604.0,2603.5,0.09107659]
[1724254301636,3.84034,2604.0,2603.5,3.93201659]
[1724254301825,3.84064,2603.8,2603.5,0.09107659]
[1724254302031,8.065344,2603.8,2603.5,0.09107659]
[1724254302257,8.065344,2603.8,2603.2,3.84134]
[1724254302417,3.8403,2604.0,2603.6,0.09060456]
[1724254302607,3.8403,2604.0,2603.4,3.84111]
[1724254302825,2.4996,2604.3,2603.7,0.09050812]
[1724254302826,3.84015,2604.1,2603.7,0.09050812]
[1724254303343,3.83959,2604.5,2603.8,3.84042]
[1724254303749,3.83937,2604.6,2604.0,3.84015]
[1724254303947,3.83926,2604.7,2604.2,3.83993]
[1724254304162,3.83899,2604.9,2604.4,3.83964]
[1724254304462,3.83899,2604.9,2604.5,0.08962022]
[1724254304642,7.67802,2604.9,2604.5,0.08962022]
[1724254304859,3.83899,2604.9,2604.5,0.08962022]
[1724254305051,3.83899,2604.9,2604.3,3.83979]
[1724254305336,7.67804,2604.9,2604.6,0.08861026]
[1724254305641,4.836484,2604.9,2604.4,0.08868126]
[1724254305868,3.83899,2604.9,2604.7,0.08839216]
[1724254306031,6.13557,2605.1,2604.1,2.3307]
[1724254306230,3.0,2605.3,2604.6,3.83923]
[1724254306231,3.8384,2605.3,2604.6,3.83923]
[1724254306610,6.09261,2605.7,2604.8,2.2575]
[1724254306825,3.83751,2605.9,2605.1,3.83848]
[1724254307154,3.83751,2605.9,2605.3,3.83829]
[1724254307355,4.832108,2605.9,2605.3,3.83832]
[1724254307614,4.832108,2605.9,2605.4,3.83816]
[1724254307915,4.832108,2605.9,2605.5,0.08729193]
[1724254308261,0.60202431,2606.2,2605.5,3.92528193]
[1724254308461,2.3774,2606.8,2605.9,3.83735]
[1724254308462,15.05076074,2606.7,2605.9,3.83735]
[1724254308727,3.83604,2606.9,2606.3,3.83684]
[1724254308857,3.8357,2607.1,2606.4,3.83669]
[1724254309079,2.3774,2607.3,2606.4,0.08642555]
[1724254309080,3.83608,2606.9,2606.4,0.08642555]
[1724254309500,3.83608,2606.9,2606.2,3.83699]
[1724254309700,3.83608,2606.9,2606.5,0.08616712]
[1724254309903,3.83608,2606.9,2606.3,3.83685]
[1724254310215,7.67219,2606.9,2606.6,0.0860709]
[1724254310507,7.67219,2606.9,2606.7,0.08597468]
[1724254310508,0.421965,2606.8,2606.7,0.08597468]
[1724254310860,0.421965,2606.8,2606.3,3.83685]
[1724254311056,0.38357,2607.0,2606.7,0.08544778]
[1724254311323,3.38357,2607.0,2606.4,3.83665]
[1724254311522,6.21286,2607.3,2606.5,3.83644]